Cogmind - Beta 13 *** ADVENTURER MODE // 2024.07.03 @ 20:29:12 Player: Dmitry Result: Self-destructed Performance ------------- Evolutions (1) 500 Regions Visited (2) 400 Robots Destroyed (27) 135 Value Destroyed (673) 673 Prototype IDs (0) 0 Alien Tech Used (0) 0 Bonus (16) 16 TOTAL SCORE: 1724 Bonus ------- High Alert Combat Kills 16 Cogmind --------- Core Integrity 349/400 Matter 86/300 Energy 1/100 System Corruption 0% Temperature Cool (4) Movement Walking (120) Location -9/Materials Parts ------- > --- POWER (2) -------- (None) > --- PROPULSION (2) --- Aluminum Leg > --- UTILITY (3) ------ Improved Terrain Scanner Shield Generator > --- WEAPON (2) ------- (None) > --- INVENTORY (5) ---- EM Pulse Gun Improved Light Cannon Grenade Launcher Grenade Launcher Grenade Launcher Peak State ------------ > --- POWER ------------ Light Ion Engine > --- PROPULSION ------- Aluminum Leg Aluminum Leg > --- UTILITY ---------- Improved Terrain Scanner Seismic Detector Shield Generator > --- WEAPON ----------- Improved Light Cannon Grenade Launcher > --- INVENTORY -------- EM Pulse Gun EM Pulse Gun Grenade Launcher Grenade Launcher Grenade Launcher [Rating: 12] Favorites ----------- Power Light Ion Engine Engine Light Ion Engine Propulsion Aluminum Leg Leg Aluminum Leg Utility Improved Terrain Scanner Device Improved Terrain Scanner Storage Huge Storage Unit Weapon Grenade Launcher Energy Gun EM Pulse Gun Ballistic Cannon Improved Light Cannon Launcher Grenade Launcher Build | -11 -10 -9 ------- Run | Yrd Mat Mat Slots Evolved 2 | . . 2 Power 1 | . . 1 Propulsion . | . . . Utility 1 | . . 1 Weapon . | . . . Parts Attached 15 | 6 4 5 Power 1 | 1 . . Engine 1 | 1 . . Core . | . . . Reactor . | . . . Propulsion 2 | 2 . . Treads . | . . . Leg 2 | 2 . . Wheel . | . . . Hover . | . . . Flight . | . . . Utility 4 | 1 2 1 Device 3 | 1 1 1 Storage 1 | . 1 . Processor . | . . . Hackware . | . . . Protection . | . . . Artifact . | . . . Weapon 8 | 2 2 4 Energy Gun 4 | 2 . 2 Energy Cannon . | . . . Ballistic Gun . | . . . Ballistic Cannon 1 | . . 1 Launcher 3 | . 2 1 Special Weapon . | . . . Impact Weapon . | . . . Slashing Weapon . | . . . Piercing Weapon . | . . . Special Melee Weapon . | . . . Unidentified Prototypes . | . . . Corrupted Parts 1 | . 1 . System Corruption 9 | . 9 . Parts Lost 6 | . 1 5 Power 1 | . . 1 Propulsion 1 | . . 1 Utility 1 | . . 1 Weapon 3 | . 1 2 Highest Loss Streak 4 | . 1 4 To Critical Strikes 1 | . . 1 Average Slot Usage (%) 82 | . 89 76 Engine 12 | . 14 11 Leg 24 | . 28 21 Device 22 | . 21 23 Energy Gun 6 | . 1 11 Ballistic Cannon 1 | . . 2 Launcher 14 | . 23 5 Naked Turns . | . . . Heaviest Build 90 | 8 90 14 Greatest Support 20 | 20 20 20 Greatest Overweight (x) 4 | . 4 . Average Overweight (x) . | . . . Largest Inventory Capacity 25 | 5 25 5 Average Capacity 5 | 5 5 5 Most Carried 5 | 1 5 5 Average Carried 4 | . 4 5 Final Capacity 5 | 5 5 5 Final Carried 5 | 1 5 5 Class Distribution -------------------- 100% | Mutant Dominant Class ---------------- Mutant | -10/Materials Mutant | -9/Materials Resources | -11 -10 -9 ----------- Run | Yrd Mat Mat Matter Collected 438 | 260 40 138 Remotely . | . . . Salvage Created 566 | 115 242 209 Parts 48 | 10 14 24 Haulers Intercepted 1 | . 1 . Recyclers Shooed 3 | . 1 2 Parts Field Recycled . | . . . Retrieved Matter . | . . . Parts Self-Destructed . | . . . Prevented . | . . . Kills | -11 -10 -9 ------- Run | Yrd Mat Mat Combat Hostiles Destroyed 16 | 1 7 8 Guns 1 | 1 . . Cannons 1 | . . 1 AOE 14 | . 7 7 Classes Destroyed 8 | 3 3 2 Worker 2 | 1 . 1 Builder 2 | . 1 1 Tunneler 3 | 3 . . Hauler 1 | . 1 . Watcher 3 | . 1 2 Swarmer 3 | . . 3 Grunt 11 | 1 7 3 Sentry 2 | . . 2 Best Kill Streak 6 | 5 3 6 Combat Bots Only 4 | 1 2 4 Max Kills in Single Turn 3 | 1 2 3 Gunslinging . | . . . Exploded 3 | . 2 3 Melee . | . . . Uniques/NPCs Destroyed . | . . . Combat | -11 -10 -9 -------- Run | Yrd Mat Mat Hostile Shots Fired 113 | 1 16 96 Missed 45 | 1 7 37 Damage Taken 590 | 12 152 426 Core 90 | 12 27 51 Absorbed by Shields 120 | . . 120 Ignored by Resistances 220 | 3 47 170 Core Remaining (%) 89 | 95 84 . Volleys Fired 32 | 5 12 15 Largest 2 | 2 2 2 Hottest 80 | 80 60 80 Shots Fired 60 | 10 24 26 Gun 24 | 10 . 14 Cannon 5 | . . 5 Launcher 31 | . 24 7 Special . | . . . Kinetic 5 | . . 5 Thermal . | . . . Explosive 31 | . 24 7 Electromagnetic 24 | 10 . 14 Robot Hit Streak 9 | 9 6 7 Robot Miss Streak 2 | . 2 2 Penetration Max . | . . . Secondary Targets . | . . . Shots Hit Robots 35 | 9 13 13 Core Hits 42 | 5 19 18 Critical Kills . | . . . Critical Parts Destroyed . | . . . Critical Strikes . | . . . Melee Attacks . | . . . Impact . | . . . Slashing . | . . . Piercing . | . . . Sneak Attacks . | . . . Combat Hostiles . | . . . Follow-up Attacks . | . . . Damage Inflicted 1999 | 189 781 1029 Guns 220 | 107 . 113 Cannons 68 | . . 68 Explosions 1699 | 82 773 844 Melee . | . . . Ramming 12 | . 8 4 Kinetic 68 | . . 68 Thermal 165 | 82 . 83 Explosive 1492 | . 731 761 Electromagnetic 262 | 107 42 113 Impact . | . . . Slashing . | . . . Piercing . | . . . Highest Corruption 9 | . 9 . Average Corruption 9 | . 9 . Corruption Purged . | . . . Corruption Blocked . | . . . Effects 4 | . 4 . Message Errors 1 | . 1 . Matter Fused 1 | . 1 . Heat Flow Errors 1 | . 1 . Energy Discharges 1 | . 1 . Overload Shots . | . . . Overflow Damage 64 | . 7 57 Projectiles 3 | . . 3 Explosions 61 | . 7 54 Melee . | . . . Knockbacks 2 | . . 2 Impact . | . . . Kinetic 1 | . . 1 Secondary 1 | . . 1 Self-Inflicted Damage 124 | 12 74 38 Shots 7 | 1 4 2 Rammed . | . . . Targets Rammed 2 | . 1 1 Kicked 2 | . 1 1 Crushed . | . . . Highest Temperature 222 | 66 222 24 Average Temperature 32 | 27 54 10 Received Heat Transfer 235 | . 60 175 Siege Activations . | . . . Robots Corrupted . | . . . Combat Hostiles . | . . . Parts Fried 1 | . . 1 Impact Corruptions . | . . . Robots Melted . | . . . Combat Hostiles . | . . . Parts Melted 1 | 1 . . Heat Transferred 300 | 200 . 100 Parts Sabotaged . | . . . Parts Stolen . | . . . Parts Stripped . | . . . Power Chain Reactions 3 | 2 . 1 Alert | -11 -10 -9 ------- Run | Yrd Mat Mat Peak Influence 475 | 40 325 475 Initial 115 | . 22 115 Average 204 | 10 198 279 Maximum Alert Level 2 | . 1 2 Low Security (%) 49 | 100 45 34 Level 1 46 | . 54 55 Level 2 4 | . . 9 Level 3 . | . . . Level 4 . | . . . Level 5 . | . . . High Security . | . . . Max Security . | . . . Squads Dispatched 3 | . 1 2 Investigation 1 | . 1 . Extermination . | . . . Reinforcement 2 | . . 2 Assault . | . . . Garrison . | . . . Intercept . | . . . Searches Triggered . | . . . Construction Impeded 1 | . . 1 Haulers Reinforced . | . . . Active Scanning Responses . | . . . Cargo Convoy Interrupts . | . . . Stealth | -11 -10 -9 --------- Run | Yrd Mat Mat Distress Signals 1 | . . 1 Communications Jammed . | . . . Distress Signals . | . . . Times Spotted 25 | 1 7 17 Peak Tracking Total 6 | 1 2 6 Tactical Retreats . | . . . Traps | -11 -10 -9 ------- Run | Yrd Mat Mat Traps Triggered . | . . . Indirectly . | . . . Trap Hack Attempts . | . . . Triggered . | . . . Disarmed . | . . . Reprogrammed . | . . . Reused . | . . . Traps Extracted . | . . . Installed . | . . . Triggered . | . . . Machines | -11 -10 -9 ---------- Run | Yrd Mat Mat Machines Disabled 7 | . 4 3 Max in Single Turn 2 | . 2 1 Machines Repaired . | . . . Machines Dismantled . | . . . Machines Sabotaged . | . . . Overloaded Fab Kills . | . . . Hacking | -11 -10 -9 --------- Run | Yrd Mat Mat Machines Accessed 3 | . 3 . Terminals 2 | . 2 . Fabricators . | . . . Repair Stations . | . . . Recycling Units 1 | . 1 . Scanalyzers . | . . . Garrison Access . | . . . Total Hacks 6 | . 6 . Successful 2 | . 2 . Failed 4 | . 4 . Catastrophic . | . . . Database Lockouts . | . . . Manual . | . . . Terminals 4 | . 4 . Fabricators . | . . . Repair Stations . | . . . Recycling Units 2 | . 2 . Scanalyzers . | . . . Garrison Access . | . . . Terminal Hacks 2 | . 2 . Level Access Points 1 | . 1 . Hauler Manifests 1 | . 1 . Fabricator Hacks . | . . . Repair Station Hacks . | . . . Recycling Unit Hacks . | . . . Scanalyzer . | . . . Garrison Access Hacks . | . . . Unauthorized Hacks . | . . . Terminals . | . . . Fabricators . | . . . Repair Stations . | . . . Recycling Units . | . . . Scanalyzers . | . . . Garrison Access . | . . . Data Cores Recovered . | . . . Used . | . . . Hacking Detections 2 | . 2 . Full Trace Events 1 | . 1 . Feedback Events . | . . . Feedback Blocked . | . . . Robot Schematics Acquired . | . . . Robots Built . | . . . Authchips . | . . . Time . | . . . Total Robot Build Rating . | . . . Part Schematics Acquired . | . . . Parts Built . | . . . Authchips . | . . . Time . | . . . Total Part Build Rating . | . . . Parts Repaired . | . . . Time . | . . . Parts Recycled . | . . . Recycled Matter . | . . . Retrieved Matter . | . . . Retrieved Components . | . . . Parts Scanalyzed . | . . . Part Schematics Acquired . | . . . Parts Damaged . | . . . Bothacking | -11 -10 -9 ------------ Run | Yrd Mat Mat Used RIF Installer . | . . . Robots Hacked . | . . . Non-combat . | . . . Combat . | . . . Robot Hacks Applied . | . . . Relay Couplers Released . | . . . Fabnet Peak Effective % . | . . . Robots Rewired . | . . . Allies Hacked . | . . . Hacks Repelled . | . . . Allies | -11 -10 -9 -------- Run | Yrd Mat Mat Total Allies . | . . . Largest Group . | . . . Highest-Rated Group . | . . . Highest-Rated Ally . | . . . Total Orders . | . . . Ally Attacks . | . . . Total Damage . | . . . Kills . | . . . Allies Corrupted . | . . . Allies Melted . | . . . Intel | -11 -10 -9 ------- Run | Yrd Mat Mat Robot Analysis Total . | . . . Derelict Logs Recovered . | . . . Drone Launches . | . . . Drone Recoveries . | . . . Exploration | -11 -10 -9 ------------- Run | Yrd Mat Mat Turns Passed 663 | 102 277 284 Spaces Moved 456 | 73 188 195 Core 15 | 15 . . Treads . | . . . Legs 441 | 58 188 195 Wheels . | . . . Hover . | . . . Flight . | . . . Fastest Speed 50 | 50 120 120 Average Speed 118 | 105 121 120 Slowest Speed 400 | 120 400 120 Overloaded Moves . | . . . Propulsion Burnouts . | . . . Robots Hopped . | . . . Cave-ins Triggered . | . . . Exploration Rate (%) 19 | 5 38 16 Regions Visited 2 Branch Regions . Pre-discovered Areas . | . . . Known Exits Taken 1 | . 1 . Unknown Exits Taken 1 | 1 . . Scrap Searched . | . . . Spaces Dug . | . . . Terrain Destroyed 195 | . 81 114 Melee . | . . . Projectile 1 | . . 1 AOE 194 | . 81 113 Terrain Rammed . | . . . Walls Destroyed . | . . . Machines Disabled . | . . . Actions | -11 -10 -9 --------- Run | Yrd Mat Mat Total 513 | 86 211 216 Wait . | . . . Move 454 | 72 187 195 Hop . | . . . Pick Up 8 | 3 5 . Fast Attach 8 | 4 2 2 Attach 2 | 2 . . Detach . | . . . Swap 5 | . 2 3 Drop 2 | . 2 . Fire 32 | 5 12 15 Melee . | . . . Ram . | . . . Kick 2 | . 1 1 Crush . | . . . Escape Stasis . | . . . Rewire . | . . . Trap . | . . . Miscellaneous . | . . . Route ------- -11/Scrapyard -10/Materials (discovered 3 exits: *Mat x3) -9/Materials History --------- Turn | Location | Event 2 | -11/Scrapyard | Met Revision 17 68 | -11/Scrapyard | Discovered new exit (range 8) 103 | -11/Scrapyard | Entered Materials 197 | -10/Materials | Identified exit to Materials 307 | -10/Materials | Build established: Mutant 380 | -10/Materials | Entered another Materials area 380 | -9/Materials | Evolved 2 slots: Power x1, Utility x1 664 | -9/Materials | Self-destructed Last Messages --------------- ALERT: Construction progress impeded, dispatching reinforcements to local area. R-06 Scavenger collects Hover Unit. K-01 Serf collects debris. R-06 Scavenger collects Signal Interpreter. K-01 Serf collects debris. O-16 Technician: "IFF HANDSHAKE FAILED. SECURING TERMINAL." ALERT: Hostiles spotted, dispatching reinforcements to Terminal M010. G-34 Mercenary destroyed. Atomic Centrifuge disabled. G-34 Mercenary destroyed. R-06 Scavenger collects Flight Unit. Critical hit (Smash). Aluminum Leg destroyed. EM Pulse Gun destroyed. Grenade Launcher destroyed. The unstable cave ceiling collapses. Lgt. Ion Engine destroyed. Map ----- +----------------------------------------------------+ | ??????????????????????????????????????????? | | ??????????????????????????????????????????? | | ??????????????????????????????????????????? | | ??????????????????????????????????????????? | | ??????????????????????????????????????????? | | ??????????????????????????????????????????? | | ??????????????????????#???????????????????? | | ?????????????????????#????????????????????? | | ??????????????????????????????????????????? | | ???????##?###+#######?????????????????????? | | ???#???? # #?????????????????????? | | ????????? # #?????????????????????? | | ??????????+ #?????????????????????? | | ???? ?????# #????#?????#??????????? | | ??????????# #??#?????? #??????????? | | ??????????# #??#???#?# #??????????? | | ??????#???# #??#???? ??????????? | | ??#???????# ######## g ???????????? | | ??????????# T???????????? | | ????#?????# ##### ????????????? | | ?????????## [??? ?????????? | | ?#???????# *= ##????????????? | | ? ?????#?# ####% ###????#??????? | | ?????????# #??#=[ #????????????? | | ????????# ! #??# %* ##???#??#?????? | | ?????## #??# = @" ##???#????????? | | ##### #### #????????????? | | + = #??## g bg #?#??????????? | | ####"""#### #?### ##???????????? | | ??#??#### ### ###?### ##?###????????? | | ????????#?# # ### #????????????? | | ?????????# #### # r """##???????????? | | ??????#??# # """#?????#??????? | | ??????? ?# """#?#?#????????? | | ????"????## #????????????? | | ?????????# ####?????#?????? | | ?????????# # * # #???#?#????????? | | ???? ??? ### ! + gg #?????????#????? | | ?????????# # # #??????????????? | | ?????????## ## #???#??????????? | | ???? ?????# ### ####?#???????????? | | ??? ??????# # # # ### #????????????????? | | ???????##?# =##??#????????????? | | ??????????# ####??????#?????????? | | ??????????#### # #????????#??????????? | | ?????????? ?? # ##??#???????????????? | | ?????????????" # # #?????#????????????? | | ????????????"" # # #???????#??????????? | | ????????? ?"?"?# # #??#??????#????????? | | ????????????? ?# ## ##???##?????????????? | +----------------------------------------------------+ Best States ------------- Heat Dissipation 28 Energy Generation 10 Energy Capacity 125 Matter Stores 300 Matter Capacity 300 Sight Range 16 Terrain Scan Range 16 Terrain Scan Density 10 Resistance: KI 20 Resistance: TH 20 Resistance: EX 20 Resistance: EM 20 Resistance: I 20 Resistance: S 20 Resistance: P 20 Evasion (%) 55 Offensive Hacking 10 Item Schematics ----------------- None Robot Schematics ------------------ None Fabricated ------------ Nothing Alien Tech Used ----------------- None Achievements -------------- Loot Pinata Oops Challenges ------------ None Game ------ Seed PhasingCoolantGravjet Manual? 0 Play Time 00:11:07 Cumulative 2.3 hours Start 2024.07.03 @ 20:18:31 End 2024.07.03 @ 20:29:12 Sessions 1 Manual Loads 0 Difficulty Adventurer Special Mode None Game No. 3 Rogue 0 Adventurer 3 Explorer 0 Win Type - Total 0 Types 0/0/0/0/0/0/0/0/0 Lore% 4 Gallery% 5 Achievement% 9 Wizard Run 0 Options --------- Layout 2 ASCII 0 Keyboard 0 Movement Mouse Keybinds 0 Fullscreen 2 Font 48/Smallcaps Map View 50x44 Zoom Use 0% Tactical HUD 0 Map Filters NONE Filters NONE Steam 0 RUN: 3344d303-7b85-4f50-958f-554982c37ef8